Cogmind - Beta 15 @@@ ROGUE MODE // 2025.06.26 @ 12:09:21 Player: Annull999 Result: Destroyed by G-47 Trooper with Particle Gun Performance ------------- Evolutions (3) 1500 Regions Visited (7) 1400 Robots Destroyed (21) 105 Value Destroyed (540) 540 Prototype IDs (2) 40 Alien Tech Used (0) 0 Bonus (0) 0 TOTAL SCORE: 3585 Bonus ------- None Cogmind --------- Core Integrity 0/700 Matter 210/300 Energy 100/100 System Corruption 3% Temperature Cool (9) Movement Core (50) Location -7/Storage Parts ------- > --- POWER (2) -------- (None) > --- PROPULSION (3) --- (None) > --- UTILITY (5) ------ Targeting Computer System Shield > --- WEAPON (3) ------- (None) > --- INVENTORY (5) ---- EM Disruption Field Recalibrator Peak State ------------ > --- POWER ------------ Ion Engine Micro Nuclear Core > --- PROPULSION ------- Airjet Airjet Xenon Bombardment Thruster > --- UTILITY ---------- Advanced Weight Redist. System Advanced Weight Redist. System Advanced Weight Redist. System Seismic Detector System Shield > --- WEAPON ----------- Light Assault Rifle Datajack > --- INVENTORY -------- Advanced Terrain Scan Processor Targeting Computer [Rating: 30] Favorites ----------- Power Ion Engine Engine Ion Engine Power Core Micro Nuclear Core Propulsion Aluminum Leg Treads Light Treads Leg Aluminum Leg Wheel Wheel Hover Unit Airjet Flight Unit Xenon Bombardment Thruster Utility Small Storage Unit Device Advanced Weight Redist. System Storage Small Storage Unit Processor Targeting Computer Hackware System Shield Weapon Beam Cannon Energy Gun Small Laser Energy Cannon Beam Cannon Ballistic Gun Light Assault Rifle Launcher Grenade Launcher Special Melee Weapon Datajack Build | -11 -10 -10 -10 -9 -8 -7 -7 ------- Run | Yrd Mat Min Exi Min Mat Fac Sto Slots Evolved 6 | . . . . . 4 2 . Power 1 | . . . . . 1 . . Propulsion 1 | . . . . . 1 . . Utility 3 | . . . . . 1 2 . Weapon 1 | . . . . . 1 . . Parts Attached 34 | 1 14 . . 1 7 7 4 Power 7 | . 3 . . 1 1 . 2 Engine 6 | . 3 . . 1 . . 2 Core 1 | . . . . . 1 . . Reactor . | . . . . . . . . Propulsion 10 | . 5 . . . 3 1 1 Treads 1 | . . . . . . . 1 Leg 4 | . 4 . . . . . . Wheel 1 | . 1 . . . . . . Hover 2 | . . . . . 2 . . Flight 2 | . . . . . 1 1 . Utility 10 | . 2 . . . 2 6 . Device 6 | . 1 . . . 2 3 . Storage . | . . . . . . . . Processor 3 | . 1 . . . . 2 . Hackware 1 | . . . . . . 1 . Protection . | . . . . . . . . Artifact . | . . . . . . . . Weapon 7 | 1 4 . . . 1 . 1 Energy Gun 1 | . 1 . . . . . . Energy Cannon 2 | . 2 . . . . . . Ballistic Gun 2 | 1 . . . . . . 1 Ballistic Cannon . | . . . . . . . . Launcher 1 | . 1 . . . . . . Special Weapon . | . . . . . . . . Impact Weapon . | . . . . . . . . Slashing Weapon . | . . . . . . . . Piercing Weapon . | . . . . . . . . Special Melee Weapon 1 | . . . . . 1 . . Unidentified Prototypes 2 | . . . . . . . 2 Parts Lost 18 | . 4 . . . 1 3 10 Power 7 | . 3 . . . . 1 3 Propulsion 5 | . 1 . . . . 1 3 Utility 2 | . . . . . . . 2 Weapon 4 | . . . . . 1 1 2 Highest Loss Streak 12 | . 1 . . . 1 2 12 To Critical Strikes 1 | . 1 . . . . . . Average Backups 3 | 5 3 4 5 5 3 1 2 Power . | 1 . . . . . . . Propulsion . | 3 . 1 1 1 . . . Utility 1 | . 1 2 2 2 2 1 2 Weapon . | 1 1 1 1 1 . . . Tool/Special . | . . . . . . . . Unused Backups 8 | . 6 . . . . . 2 Power 2 | . 2 . . . . . . Propulsion 1 | . 1 . . . . . . Utility 4 | . 2 . . . . . 2 Weapon 1 | . 1 . . . . . . Tool/Special . | . . . . . . . . Average Slot Usage (%) 82 | . 79 85 85 98 81 84 46 Engine 5 | . 6 . . 12 9 6 3 Core 1 | . . . . . 6 7 2 Leg 21 | . 22 28 28 28 3 . . Hover 1 | . . . . . 13 12 3 Device 5 | . 7 . . . 13 20 13 Storage 11 | . 14 14 14 14 2 . . Processor 8 | . 1 14 14 14 9 9 7 Energy Gun 2 | . 6 . . . . . . Energy Cannon 10 | . 11 14 14 14 6 . . Ballistic Gun 9 | . 3 14 14 14 9 7 4 Launcher 1 | . 4 . . . . . . Peak Build Rating 30 | 6 7 6 6 7 21 30 24 Average Rating 8 | 6 5 6 6 6 18 25 17 On Entrance 10 | 6 6 6 6 6 7 20 24 Naked Turns . | . . . . . . . . Heaviest Build 27 | 13 13 9 9 14 16 15 27 Greatest Support 25 | 20 20 20 20 20 25 25 17 Greatest Overweight (x) 8 | . 3 . . . 1 . 8 Average Overweight (x) . | . . . . . . . . Largest Inventory Capacity 8 | 8 8 8 8 8 8 5 5 Average Capacity 7 | 8 8 8 8 8 5 5 5 Most Carried 8 | 5 8 5 5 6 8 4 3 Average Carried 3 | 3 3 4 5 5 3 1 2 Final Capacity 8 | 8 8 8 8 8 5 5 5 Final Carried 6 | 2 4 5 5 6 3 2 2 Class Distribution -------------------- 93% | Mutant 6% | Scavenger-Mutant Dominant Class ---------------- Mutant | -10/Materials Mutant | -10/Mines Mutant | -10/Exiles Mutant | -9/Mines Mutant | -8/Materials Mutant | -7/Factory Mutant | -7/Storage Resources | -11 -10 -10 -10 -9 -8 -7 -7 ----------- Run | Yrd Mat Min Exi Min Mat Fac Sto Matter Collected 568 | 200 287 . . 14 . . 67 Remotely . | . . . . . . . . Salvage Created 596 | . 424 . . 105 . . 67 Parts 42 | . 32 . . 7 . . 3 Haulers Intercepted . | . . . . . . . . Recyclers Shooed 1 | . 1 . . . . . . Parts Field Recycled . | . . . . . . . . Retrieved Matter . | . . . . . . . . Parts Self-Destructed . | . . . . . . . . Prevented . | . . . . . . . . Kills | -11 -10 -10 -10 -9 -8 -7 -7 ------- Run | Yrd Mat Min Exi Min Mat Fac Sto Combat Hostiles Destroyed 13 | . 10 . . 2 . . 1 Guns 4 | . 3 . . . . . 1 Cannons 4 | . 2 . . 2 . . . AOE 5 | . 5 . . . . . . Classes Destroyed 8 | . 7 . . . . . 1 Worker 2 | . 2 . . . . . . Builder 1 | . 1 . . . . . . Recycler 1 | . 1 . . . . . . Operator 1 | . 1 . . . . . . Watcher 3 | . 3 . . . . . . Swarmer 3 | . 3 . . . . . . Grunt 9 | . 7 . . 2 . . . Brawler 1 | . . . . . . . 1 Best Kill Streak 6 | . 6 . . 2 . . 1 Combat Bots Only 3 | . 3 . . 2 . . 1 Max Kills in Single Turn 3 | . 3 . . 1 . . 1 Gunslinging . | . . . . . . . . Exploded 2 | . 2 . . . . . . Melee . | . . . . . . . . Uniques/NPCs Destroyed . | . . . . . . . . Combat | -11 -10 -10 -10 -9 -8 -7 -7 -------- Run | Yrd Mat Min Exi Min Mat Fac Sto Hostile Shots Fired 289 | . 78 . . 4 14 17 176 Missed 107 | . 28 . . 1 10 8 60 Hits 182 | . 50 . . 3 4 9 116 Melee 2 | . . . . . . . 2 Projectile 180 | . 50 . . 3 4 9 114 Critical Strikes 6 | . 1 . . . 1 . 4 Damage Taken 2328 | . 675 . . 61 59 136 1397 Core 898 | . 158 . . 36 . 46 658 Absorbed by Shields . | . . . . . . . . Core Remaining (%) 74 | 100 . . . 22 100 . . Volleys Fired 48 | . 33 . . 4 1 2 8 Largest 2 | . 2 . . 2 2 1 1 Hottest 80 | . 80 . . 80 80 20 15 Shots Fired 81 | . 61 . . 8 2 2 8 Gun 50 | . 35 . . 4 1 2 8 Cannon 20 | . 15 . . 4 1 . . Launcher 11 | . 11 . . . . . . Special . | . . . . . . . . Kinetic 32 | . 17 . . 4 1 2 8 Thermal 36 | . 31 . . 4 1 . . Explosive 11 | . 11 . . . . . . Electromagnetic 2 | . 2 . . . . . . Robot Hit Streak 6 | . 6 . . 6 . 2 4 Robot Miss Streak 3 | . 3 . . 1 2 . 2 Penetration Max . | . . . . . . . . Secondary Targets . | . . . . . . . . Shots Hit Robots 47 | . 33 . . 6 1 2 5 Core Hits 37 | . 29 . . 4 . 1 3 Critical Kills . | . . . . . . . . Critical Parts Destroyed . | . . . . . . . . Critical Strikes . | . . . . . . . . Melee Attacks 1 | . . . . . 1 . . Impact . | . . . . . . . . Slashing . | . . . . . . . . Piercing . | . . . . . . . . Sneak Attacks 1 | . . . . . 1 . . Combat Hostiles . | . . . . . . . . Follow-up Attacks . | . . . . . . . . Damage Inflicted 1134 | . 883 . . 91 . 19 141 Guns 382 | . 209 . . 22 . 19 132 Cannons 194 | . 125 . . 69 . . . Explosions 541 | . 541 . . . . . . Melee . | . . . . . . . . Ramming 17 | . 8 . . . . . 9 Kinetic 276 | . 103 . . 22 . 19 132 Thermal 280 | . 211 . . 69 . . . Explosive 541 | . 541 . . . . . . Electromagnetic 20 | . 20 . . . . . . Impact . | . . . . . . . . Slashing . | . . . . . . . . Piercing . | . . . . . . . . Highest Corruption 3 | . 1 1 1 1 . 1 3 Average Corruption 1 | . 1 1 1 1 . 1 1 Corruption Purged . | . . . . . . . . Corruption Blocked . | . . . . . . . . Effects 14 | . 4 . 4 4 . . 2 Message Errors 2 | . . . 1 . . . 1 Matter Fused 4 | . 2 . . 2 . . . Energy Discharges 4 | . . . 2 2 . . . Data Loss (minor) 2 | . 1 . 1 . . . . Data Loss (major) 2 | . 1 . . . . . 1 Overload Shots . | . . . . . . . . Overflow Damage . | . . . . . . . . Projectiles . | . . . . . . . . Explosions . | . . . . . . . . Melee . | . . . . . . . . Knockbacks . | . . . . . . . . Impact . | . . . . . . . . Kinetic . | . . . . . . . . Secondary . | . . . . . . . . Self-Inflicted Damage 93 | . 90 . . . . . 3 Shots 6 | . 6 . . . . . . Rammed 7 | . . . . . . . 7 Targets Rammed 9 | . 1 1 . . . . 7 Kicked 2 | . 1 1 . . . . . Crushed . | . . . . . . . . Highest Temperature 259 | . 259 . . 88 48 . 7 Average Temperature 69 | . 80 . . 42 19 . 3 Received Heat Transfer 1083 | . 288 . . 24 54 27 690 Siege Activations . | . . . . . . . . Martial Activations . | . . . . . . . . Shielding Activations . | . . . . . . . . Robots Disrupted . | . . . . . . . . Combat Hostiles . | . . . . . . . . Robots Corrupted . | . . . . . . . . Combat Hostiles . | . . . . . . . . Parts Fried . | . . . . . . . . Impact Corruptions . | . . . . . . . . Robots Melted . | . . . . . . . . Combat Hostiles . | . . . . . . . . Parts Melted . | . . . . . . . . Heat Transferred 607 | . 459 . . 148 . . . Parts Sabotaged . | . . . . . . . . Parts Stolen . | . . . . . . . . Parts Stripped . | . . . . . . . . Power Chain Reactions . | . . . . . . . . Alert | -11 -10 -10 -10 -9 -8 -7 -7 ------- Run | Yrd Mat Min Exi Min Mat Fac Sto Maximum Alert Level 1 | . 1 . . . . . . Low Security (%) 92 | 100 83 100 . 100 100 100 100 Level 1 7 | . 16 . . . . . . Level 2 . | . . . . . . . . Level 3 . | . . . . . . . . Level 4 . | . . . . . . . . Level 5 . | . . . . . . . . High Security . | . . . . . . . . Max Security . | . . . . . . . . Peak Influence 269 | . 269 9 . 50 14 11 30 Initial 9 | . . 9 . . . . . Average 35 | . 74 . . 5 . 1 2 Influence Increases 635 | . 518 . . 50 15 15 37 Destroy 0b10 Robot/C 260 | . 200 . . 40 . . 20 Destroy 0b10 Robot/NC 40 | . 40 . . . . . . Destroy Leader 76 | . 56 . . 10 . . 10 Successful Hack 60 | . 23 . . . 15 15 7 Disable Machine 60 | . 60 . . . . . . Destroy Structure 79 | . 79 . . . . . . Lose Combat Pursuer 60 | . 60 . . . . . . Influence Decreases 635 | . 494 24 . 50 15 15 37 Entered New Map 15 | . . 15 . . . . . Time Decay 402 | . 305 9 . 50 11 10 17 Lost Part 68 | . 39 . . . 4 5 20 Purge Threat 150 | . 150 . . . . . . Squads Dispatched 7 | . 2 . . . 2 2 1 Investigation 5 | . 1 . . . 2 2 . Extermination . | . . . . . . . . Reinforcement 2 | . 1 . . . . . 1 Assault . | . . . . . . . . Garrison . | . . . . . . . . Intercept . | . . . . . . . . Searches Triggered . | . . . . . . . . Construction Impeded . | . . . . . . . . Haulers Reinforced . | . . . . . . . . Active Scanning Responses . | . . . . . . . . Cargo Convoy Interrupts . | . . . . . . . . Stealth | -11 -10 -10 -10 -9 -8 -7 -7 --------- Run | Yrd Mat Min Exi Min Mat Fac Sto Distress Signals 2 | . 1 . . . . . 1 Communications Jammed 6 | . . . . . . . 6 Distress Signals 6 | . . . . . . . 6 Times Spotted 50 | . 23 . . 2 7 6 12 Peak Tracking Total 10 | . 5 . . 2 6 3 10 Tactical Retreats 1 | . 1 . . . . . . Traps | -11 -10 -10 -10 -9 -8 -7 -7 ------- Run | Yrd Mat Min Exi Min Mat Fac Sto Traps Triggered 9 | . 7 . . 1 . . 1 Indirectly . | . . . . . . . . Trap Hack Attempts . | . . . . . . . . Triggered . | . . . . . . . . Disarmed 1 | . . . . . . 1 . Reprogrammed . | . . . . . . . . Reused . | . . . . . . . . Traps Extracted . | . . . . . . . . Installed . | . . . . . . . . Triggered . | . . . . . . . . Machines | -11 -10 -10 -10 -9 -8 -7 -7 ---------- Run | Yrd Mat Min Exi Min Mat Fac Sto Machines Disabled 4 | . 4 . . . . . . Max in Single Turn 2 | . 2 . . . . . . Machines Repaired . | . . . . . . . . Machines Dismantled . | . . . . . . . . Machines Sabotaged . | . . . . . . . . Overloaded Fab Kills . | . . . . . . . . Hacking | -11 -10 -10 -10 -9 -8 -7 -7 --------- Run | Yrd Mat Min Exi Min Mat Fac Sto Machines Accessed 19 | . 6 . 1 1 4 6 1 Terminals 13 | . 5 . . . 2 5 1 Fabricators . | . . . . . . . . Repair Stations . | . . . . . . . . Recycling Units 3 | . 1 . . . 1 1 . Scanalyzers 1 | . . . . . 1 . . Garrison Access . | . . . . . . . . Total Hacks 76 | . 18 . 23 1 12 21 1 Successful 53 | . 13 . 23 1 6 9 1 Failed 23 | . 5 . . . 6 12 . Catastrophic 6 | . 2 . . . 2 2 . Database Lockouts . | . . . . . . . . Manual 36 | . 13 . . . 6 17 . Terminals 42 | . 16 . . . 6 19 1 Fabricators . | . . . . . . . . Repair Stations . | . . . . . . . . Recycling Units 5 | . 2 . . . 1 2 . Scanalyzers 5 | . . . . . 5 . . Garrison Access . | . . . . . . . . Terminal Hacks 40 | . 9 . 23 1 . 6 1 Record 25 | . . . 23 . . 2 . Open Door 2 | . . . . 1 . . 1 Branch Access Points 2 | . 2 . . . . . . Terminal Index 3 | . 2 . . . . 1 . Alert Level 3 | . 2 . . . . 1 . Unreport Threat 1 | . 1 . . . . . . Locate Traps 2 | . 1 . . . . 1 . Disarm Traps 1 | . . . . . . 1 . Hauler Manifests 1 | . 1 . . . . . . Fabricator Hacks . | . . . . . . . . Repair Station Hacks . | . . . . . . . . Recycling Unit Hacks 2 | . 1 . . . 1 . . Report Inventory 1 | . . . . . 1 . . Retrieve Components 1 | . 1 . . . . . . Scanalyzer 4 | . . . . . 4 . . Insert Component 2 | . . . . . 2 . . Analyze 2 | . . . . . 2 . . Garrison Access Hacks . | . . . . . . . . Unauthorized Hacks 7 | . 3 . . . 1 3 . Terminals 7 | . 3 . . . 1 3 . Botnet 7 | . 3 . . . 1 3 . Fabricators . | . . . . . . . . Repair Stations . | . . . . . . . . Recycling Units . | . . . . . . . . Scanalyzers . | . . . . . . . . Garrison Access . | . . . . . . . . Data Cores Recovered . | . . . . . . . . Used . | . . . . . . . . Hacking Detections 14 | . 5 . . . 3 6 . Full Trace Events 5 | . 1 . . . 2 2 . Feedback Events 1 | . . . . . . 1 . Corruption 1 | . . . . . . 1 . Feedback Blocked . | . . . . . . . . Robot Schematics Acquired . | . . . . . . . . Robots Built . | . . . . . . . . Authchips . | . . . . . . . . Time . | . . . . . . . . Total Robot Build Rating . | . . . . . . . . Part Schematics Acquired 2 | . . . . . 2 . . Parts Built . | . . . . . . . . Authchips . | . . . . . . . . Time . | . . . . . . . . Total Part Build Rating . | . . . . . . . . Parts Repaired . | . . . . . . . . Time . | . . . . . . . . Parts Recycled . | . . . . . . . . Recycled Matter . | . . . . . . . . Retrieved Matter . | . . . . . . . . Retrieved Components 7 | . 7 . . . . . . Parts Scanalyzed 2 | . . . . . 2 . . Part Schematics Acquired 2 | . . . . . 2 . . Parts Damaged . | . . . . . . . . Bothacking | -11 -10 -10 -10 -9 -8 -7 -7 ------------ Run | Yrd Mat Min Exi Min Mat Fac Sto Used RIF Installer . | . . . . . . . . Robots Hacked . | . . . . . . . . Non-combat . | . . . . . . . . Combat . | . . . . . . . . Robot Hacks Applied . | . . . . . . . . Relay Couplers Released . | . . . . . . . . Fabnet Peak Effective % . | . . . . . . . . Robots Rewired . | . . . . . . . . Allies Hacked . | . . . . . . . . Hacks Repelled . | . . . . . . . . Allies | -11 -10 -10 -10 -9 -8 -7 -7 -------- Run | Yrd Mat Min Exi Min Mat Fac Sto Total Allies . | . . . . . . . . Largest Group . | . . . . . . . . Highest-Rated Group . | . . . . . . . . Highest-Rated Ally . | . . . . . . . . Total Orders . | . . . . . . . . Ally Attacks . | . . . . . . . . Total Damage . | . . . . . . . . Kills . | . . . . . . . . Allies Corrupted . | . . . . . . . . Allies Melted . | . . . . . . . . Intel | -11 -10 -10 -10 -9 -8 -7 -7 ------- Run | Yrd Mat Min Exi Min Mat Fac Sto Active Infowar (turns) 716 | . 464 . . . . 193 59 Terrain 464 | . 464 . . . . . . Seismic 234 | . . . . . . 193 41 Jamming 100 | . . . . . . 41 59 Robot Analysis Total . | . . . . . . . . Derelict Logs Recovered 1 | . . 1 . . . . . Drone Launches . | . . . . . . . . Drone Recoveries . | . . . . . . . . Exploration | -11 -10 -10 -10 -9 -8 -7 -7 ------------- Run | Yrd Mat Min Exi Min Mat Fac Sto Turns Passed 2396 | 4 860 189 520 394 113 194 122 Spaces Moved 2142 | 1 583 156 434 317 146 377 128 Core 104 | . 67 . . . . . 37 Treads . | . . . . . . . . Legs 1428 | 1 515 156 434 317 5 . . Wheels 1 | . 1 . . . . . . Hover 319 | . . . . . 141 155 23 Flight 290 | . . . . . . 222 68 Fastest Speed 40 | 120 95 120 120 120 56 40 40 Average Speed 100 | 120 123 120 120 120 59 46 62 Slowest Speed 450 | 120 200 120 120 120 130 56 450 Overloaded Moves . | . . . . . . . . Propulsion Burnouts . | . . . . . . . . Robots Hopped . | . . . . . . . . Potential Cave-ins . | . . . . . . . . Cave-ins Triggered . | . . . . . . . . Exploration Rate (%) 37 | 2 79 27 78 69 16 11 18 Regions Visited 7 Branch Regions 4 Pre-discovered Areas 1 | . . . 1 . . . . Known Exits Taken 2 | . 1 1 . . . . . Unknown Exits Taken 5 | 1 . . 1 1 1 1 . Scrap Searched 1 | . . 1 . . . . . Spaces Dug . | . . . . . . . . Terrain Destroyed 81 | . 81 . . . . . . Melee . | . . . . . . . . Projectile . | . . . . . . . . AOE 81 | . 81 . . . . . . Terrain Rammed . | . . . . . . . . Walls Destroyed . | . . . . . . . . Machines Disabled . | . . . . . . . . Actions | -11 -10 -10 -10 -9 -8 -7 -7 --------- Run | Yrd Mat Min Exi Min Mat Fac Sto Total 2301 | 5 665 157 433 323 172 393 153 Wait 15 | . 10 . . . 3 . 2 Move 2135 | . 582 155 433 316 145 376 128 Hop . | . . . . . . . . Pick Up 37 | . 19 1 . 2 5 6 4 Fast Attach . | . . . . . . . . Attach 32 | . 13 . . 1 9 5 4 Detach 3 | . . . . . 3 . . Swap 6 | 1 3 . . . . 2 . Drop 15 | 4 4 . . . 5 2 . Fire 48 | . 33 . . 4 1 2 8 Melee 1 | . . . . . 1 . . Ram 4 | . . . . . . . 4 Kick 2 | . 1 1 . . . . . Crush 3 | . . . . . . . 3 Escape Stasis . | . . . . . . . . Rewire . | . . . . . . . . Trap . | . . . . . . . . Miscellaneous . | . . . . . . . . Route ------- -11/Scrapyard -10/Materials (discovered 5 exits: [*Mat x3] / *Min / [*Sub]) -10/Mines (discovered 2 exits: [*Mat] / *Exi) -10/Exiles (discovered 2 exits: *Min x2) -9/Mines -8/Materials -7/Factory (discovered 2 exits: *Sto / [*Low]) -7/Storage History --------- Turn | Location | Event 5 | -11/Scrapyard | Discovered new exit (range 0) 5 | -11/Scrapyard | Entered Materials 80 | -10/Materials | Identified exit to Mines 85 | -10/Materials | Discovered new exit (range 16) 236 | -10/Materials | Discovered new exit (range 11) 347 | -10/Materials | Discovered new exit (range 15) 564 | -10/Materials | Discovered new exit (range 12) 641 | -10/Materials | Build established: Mutant 742 | -10/Materials | Core integrity fell below 50% 805 | -10/Materials | Derelicts attacked the area 865 | -10/Materials | Entered Mines 876 | -10/Mines | Met a Derelict bent on vengeance 919 | -10/Mines | Discovered new exit (range 6) 964 | -10/Mines | Identified exit to Exiles 1046 | -10/Mines | Deemed a non-threat by the Exiles lab entrance 1054 | -10/Mines | Entered Exiles 1081 | -10/Exiles | Discovered new exit (range 14) 1099 | -10/Exiles | Met 8R-AWN 1124 | -10/Exiles | Met EX-HEX 1182 | -10/Exiles | Met EX-DEC 1195 | -10/Exiles | Learned location of Zion (-7) 1278 | -10/Exiles | Discovered new exit (range 14) 1379 | -10/Exiles | Visited The Gauntlet 1574 | -10/Exiles | Entered Mines 1925 | -9/Mines | Discovered new exit (range 12) 1947 | -9/Mines | Met a Derelict who couldn't figure out how to use a Trap Extractor 1968 | -9/Mines | Entered Materials 1968 | -8/Materials | Evolved 4 slots: Power x1, Propulsion x1, Utility x1, Weapon x1 2075 | -8/Materials | Discovered new exit (range 8) 2081 | -8/Materials | Entered Factory 2081 | -7/Factory | Evolved 2 slots: Utility x2 2099 | -7/Factory | Discovered new exit (range 6) 2260 | -7/Factory | Discovered new exit (range 11) 2275 | -7/Factory | Entered Storage 2382 | -7/Storage | Core integrity fell below 50% 2394 | -7/Storage | Core integrity fell below 20% 2397 | -7/Storage | Destroyed by G-47 Trooper with Particle Gun Last Messages --------------- 02350_ Identified Hvy. Deuterium Engine. 02354_ Acquired Hvy. Deuterium Engine. 02360_ Knocked back. 02367_ Transmission Jammer destroyed. 02367_ System corrupted by crushing effect (+2). 02368_ B-48 Gladiator destroyed. 02370_ Imp. Heavy Machine Gun destroyed. 02371_ Acquired 67 matter. 02374_ Critical hit (Burn: +37). 02375_ Slammed into G-47 Trooper. 02377_ XLUS2MUFM114>N1YEYDLKLPN>ZK#XLGUQ 02379_ Slammed into G-47 Trooper. 02383_ Slammed into Y-54 Guardian. 02383_ Destabilizing: Core damaged (-7). 02386_ Hvy. Deuterium Engine destroyed. 02389_ Acquired Lgt. Treads. 02389_ Critical hit (Burn: +37). 02391_ Slammed into G-47 Trooper. 02395_ Lgt. Treads destroyed. 02396_ Slammed into Y-54 Guardian. Map ----- +----------------------------------------------------+ | | | | | | | | | | | | | | | | | | | | | | | | | | | | | ?????????????????????????????????????????????????? | | ?????????????????????????????????????????????????? | | ?????????????????????????????????###########?????? | | ?????????????????????????????????# #?????? | | ?????????????????????????????????# """" ####### | | ?????????????????????????????????# "??"" # | | ???????????????????????#####?????# "???"" + | | ???????????????????????#*g*#?????# ""???" # | | ???????????????????????#g *#?????# ""??" # ### | | ??????????????????????##"g"#?????# """" # #?? | | ??????????????????????#Tg/Y#?????# # #?? | | ?????????????????+#######@############+##### #?? | | ?????????? YYm #?? | | ?????????????????######### #?? | | ?????????????????????????# % #?? | | ?????????????????????????# ^* #?? | | ?????????????????????????# ! #?? | | ?????????????????????????# w #?? | | ?????????????????????????# ########## #?? | | ?????????????????????????# ## # #?? | | ?????????????????????##### ## # #?? | | ?????????????????????# + ## # #?? | | ?????????????????????###T#######a## """ # # | | ???????????????????????###?????# ## """ + / | | ???????????????????????????????# ## """ # # | | ???????????????????????????????# ## """ # +?" | | ???????????????????????????????# ## """ # #?? | | ???????????????????????????????? ## # #?? | | ???????????????????????????????? #? #########+##?? | | ????????????????????????????????/??????????? ??? | | ???????????????????????????????? ??????????? ??? | | ???????????????????????????????? ???????????"""??? | | ???????????????????????????????? ?????????? """??? | | ????????????????????????????????"?????????? """ ?? | | ??????????????????????????????????????????? ?????? | | ???????????????????????????????????????????#?????? | +----------------------------------------------------+ Best States ------------- Heat Dissipation 34 Energy Generation 31 Energy Capacity 520 Matter Stores 300 Matter Capacity 300 Sight Range 16 Terrain Scan Range 14 Terrain Scan Density 210 Jamming Range 12 Additional Mass Support 9 Evasion (%) 62 Targeting Accuracy 5 Defensive Hacking 10 Item Schematics ----------------- Airjet | -8/Materials | Scanalyzed Adv. Weight Redist. System | -8/Materials | Scanalyzed Robot Schematics ------------------ None Fabricated ------------ Nothing Repaired ---------- Nothing Alien Tech Used ----------------- None Achievements -------------- Shopping List Challenges ------------ None Game ------ Seed HardlightParticleCanceller Manual? 0 Play Time 00:50:04 Cumulative 15.7 hours Start 2025.06.26 @ 11:11:32 End 2025.06.26 @ 12:09:21 Sessions 1 Manual Loads 0 Difficulty Rogue Special Mode None Game No. 28 Rogue 28 Adventurer 0 Explorer 0 Win Type - Total 0 Types 0/0/0/0/0/0/0/0/0/0 Lore% 5 Gallery% 15 Achievement% 17 Wizard Run 0 Options --------- Layout 0 ASCII 0 Keyboard 0 Movement Numpad Keybinds 0 Fullscreen 2 Font 24/Smallcaps Map View 76x50 Zoom Use 0% Tactical HUD 1 Map Filters NONE Filters NONE Steam 1 RUN: 72e0e0c1-0d9d-4169-865c-f80f574948e1